fUST/lending_fUST_20250507
["ID","MTS","AMOUNT","RATE_DAILY","PERIOD"]
[360119692,1746556249507,-400.0,0.00019452,2]
[360119694,1746556249517,-400.0,0.00019452,2]
[360119696,1746556249526,-400.0,0.00019452,2]
[360119698,1746556249535,-400.0,0.00019452,2]
[360119700,1746556249544,-400.0,0.00019452,2]
[360119702,1746556249554,-400.0,0.00019452,2]
[360119704,1746556249563,-400.0,0.00019452,2]
[360119719,1746556249689,-400.0,0.00019452,2]
[360119721,1746556249699,-1000.0,0.00019452,2]
[360119723,1746556249709,-509.59,0.00019452,2]
[360119725,1746556249718,-400.0,0.00019452,2]
[360119727,1746556249727,-1877.288413,0.00019452,2]
[360119729,1746556249736,-401.72877858,0.00019452,2]
[360119731,1746556249746,-1877.288413,0.00019452,2]
[360119733,1746556249755,-400.0,0.00019452,2]
[360119735,1746556249764,-400.0,0.00019452,2]
[360119737,1746556249774,-400.0,0.00019452,2]
[360119739,1746556249783,-1877.288413,0.00019452,2]
[360119741,1746556249793,-400.0,0.00019452,2]
[360119743,1746556249802,-1877.288413,0.00019452,2]
[360119745,1746556249812,-400.0,0.00019452,2]
[360119747,1746556249821,-400.0,0.00019452,2]
[360119749,1746556249830,-353.28047129,0.00019452,2]
[360119751,1746556249839,-400.0,0.00019452,2]
[360119752,1746556249848,-400.0,0.00019452,2]
[360119753,1746556249857,-208.44611728,0.00019452,2]
[360119754,1746556249866,-689.89,0.00019452,2]
[360119755,1746556249875,-400.0,0.00019452,2]
[360119756,1746556249884,-400.0,0.00019452,2]
[360119757,1746556249894,-1126.34,0.00019452,2]
[360119758,1746556249902,-509.01718628,0.00019452,2]
[360119759,1746556249911,-400.0,0.00019452,2]
[360119760,1746556249920,-346.12022662,0.00019452,2]
[360119761,1746556249929,-400.0,0.00019452,2]
[360119762,1746556249937,-400.0,0.00019452,2]
[360119763,1746556249946,-400.0,0.00019452,2]
[360119764,1746556249955,-400.0,0.00019452,2]
[360119765,1746556249964,-400.0,0.00019452,2]
[360119766,1746556249973,-400.0,0.00019452,2]
[360119767,1746556249981,-242.78921981,0.00019452,2]
[360119769,1746556249991,-400.0,0.00019452,2]
[360119770,1746556250000,-400.0,0.00019452,2]
[360119772,1746556250009,-400.0,0.00019452,2]
[360119774,1746556250018,-400.0,0.00019452,2]
[360119776,1746556250027,-400.0,0.00019452,2]
[360119778,1746556250037,-400.0,0.00019452,2]
[360119780,1746556250046,-400.0,0.00019452,2]
[360119782,1746556250055,-400.0,0.00019452,2]
[360119784,1746556250064,-400.0,0.00019452,2]
[360119786,1746556250073,-400.0,0.00019452,2]
[360119788,1746556250082,-400.0,0.00019452,2]
[360119790,1746556250095,-400.0,0.00019452,2]
[360119792,1746556250104,-400.0,0.00019452,2]
[360119794,1746556250114,-400.0,0.00019452,2]
[360119796,1746556250123,-400.0,0.00019452,2]
[360119798,1746556250132,-400.0,0.00019452,2]
[360119800,1746556250142,-400.0,0.00019452,2]
[360119802,1746556250151,-561.19,0.00019452,2]
[360119804,1746556250160,-408.2952987,0.00019452,2]
[360119806,1746556250169,-400.0,0.00019452,2]
[360119808,1746556250181,-400.0,0.00019452,2]
[360119810,1746556250191,-400.0,0.00019452,2]
[360119812,1746556250200,-400.0,0.00019452,2]
[360119814,1746556250209,-400.0,0.00019452,2]
[360119816,1746556250218,-753.36,0.00019452,2]
[360119818,1746556250227,-400.0,0.00019452,2]
[360119820,1746556250236,-400.0,0.00019452,2]
[360119821,1746556250246,-400.0,0.00019452,2]
[360119822,1746556250255,-400.0,0.00019452,2]
[360119823,1746556250264,-400.0,0.00019452,2]
[360119824,1746556250273,-400.0,0.00019452,2]
[360119825,1746556250282,-151.0,0.00019452,2]
[360119826,1746556250292,-151.0,0.00019452,2]
[360119827,1746556250301,-400.0,0.00019452,2]
[360119828,1746556250311,-400.0,0.00019452,2]
[360119829,1746556250320,-400.0,0.00019452,2]
[360119830,1746556250329,-400.0,0.00019452,2]
[360119831,1746556250338,-202.21434323,0.00019452,2]
[360119832,1746556250347,-151.0,0.00019452,2]
[360119833,1746556250356,-400.0,0.00019452,2]
[360119834,1746556250365,-400.0,0.00019452,2]
[360119835,1746556250374,-405.48514162,0.00019452,2]
[360119836,1746556250383,-400.0,0.00019452,2]
[360119837,1746556250392,-176.639,0.00019452,2]
[360119838,1746556250401,-506.65,0.00019452,2]
[360119839,1746556250410,-415.90034457,0.00019452,2]
[360119840,1746556250419,-400.0,0.00019452,2]
[360119841,1746556250428,-400.0,0.00019452,2]
[360119842,1746556250436,-400.0,0.00019452,2]
[360119843,1746556250445,-400.0,0.00019452,2]
[360119844,1746556250454,-400.0,0.00019452,2]
[360119845,1746556250463,-400.0,0.00019452,2]
[360119846,1746556250472,-400.0,0.00019452,2]
[360119847,1746556250482,-781.9,0.00019452,2]
[360119849,1746556250491,-400.0,0.00019452,2]
[360119851,1746556250501,-400.0,0.00019452,2]
[360119853,1746556250510,-400.0,0.00019452,2]
[360119855,1746556250519,-151.0,0.00019452,2]
[360119857,1746556250529,-151.0,0.00019452,2]
[360119859,1746556250537,-400.0,0.00019452,2]
[360119861,1746556250546,-400.0,0.00019452,2]
[360119863,1746556250555,-495.61,0.00019452,2]
[360119865,1746556250565,-400.0,0.00019452,2]
[360119867,1746556250574,-153.394978,0.00019452,2]
[360119869,1746556250583,-400.0,0.00019452,2]
[360119871,1746556250593,-371.027915,0.00019452,2]
[360119873,1746556250602,-400.0,0.00019452,2]
[360119875,1746556250612,-371.027915,0.00019452,2]
[360119877,1746556250622,-428.69,0.00019452,2]
[360119879,1746556250632,-400.0,0.00019452,2]
[360119881,1746556250642,-371.027915,0.00019452,2]
[360119883,1746556250651,-371.027915,0.00019452,2]
[360119885,1746556250661,-151.715975,0.00019452,2]
[360119887,1746556250671,-505.86301473,0.00019452,2]
[360119889,1746556250680,-481.53152116,0.00019452,2]
[360119891,1746556250690,-400.0,0.00019452,2]
[360119893,1746556250699,-557.65,0.00019452,2]
[360119895,1746556250708,-501.77136801,0.00019452,2]
[360119897,1746556250718,-1052.77,0.00019452,2]
[360119899,1746556250727,-400.0,0.00019452,2]
[360119901,1746556250736,-400.0,0.00019452,2]
[360119903,1746556250746,-400.0,0.00019452,2]
[360119905,1746556250755,-400.0,0.00019452,2]
[360119907,1746556250764,-563.92,0.00019452,2]
[360119909,1746556250773,-400.0,0.00019452,2]
[360119911,1746556250784,-400.0,0.00019452,2]
[360119913,1746556250794,-582.88,0.00019452,2]
[360119915,1746556250803,-400.0,0.00019452,2]
[360119918,1746556250813,-463.5,0.00019452,2]
[360119920,1746556250822,-400.0,0.00019452,2]
[360119922,1746556250831,-449.36,0.00019452,2]
[360119923,1746556250841,-400.0,0.00019452,2]
[360119926,1746556250851,-400.0,0.00019452,2]
[360119928,1746556250861,-1756.62,0.00019452,2]
[360119930,1746556250870,-400.0,0.00019452,2]
[360119932,1746556250879,-400.0,0.00019452,2]
[360119934,1746556250888,-400.0,0.00019452,2]
[360119936,1746556250897,-500.0,0.00019452,2]
[360119938,1746556250906,-400.0,0.00019452,2]
[360119940,1746556250915,-326.7264839,0.00019452,2]
[360119942,1746556250924,-400.0,0.00019452,2]
[360119944,1746556250933,-227.75999,0.00019452,2]
[360119946,1746556250944,-227.75999,0.00019452,2]
[360119948,1746556250953,-227.75999,0.00019452,2]
[360119950,1746556250962,-227.75999,0.00019452,2]
[360119952,1746556250972,-400.0,0.00019452,2]
[360119954,1746556250981,-400.0,0.00019452,2]
[360119956,1746556250991,-400.0,0.00019452,2]
[360119958,1746556251002,-1994.82,0.00019452,2]
[360119960,1746556251012,-400.0,0.00019452,2]
[360119962,1746556251021,-400.0,0.00019452,2]
[360119964,1746556251031,-585.18,0.00019452,2]
[360119966,1746556251039,-1428.88,0.00019452,2]
[360119968,1746556251048,-400.0,0.00019452,2]
[360119970,1746556251057,-844.65,0.00019452,2]
[360119972,1746556251066,-400.0,0.00019452,2]
[360119974,1746556251075,-400.0,0.00019452,2]
[360119976,1746556251085,-400.0,0.00019452,2]
[360119978,1746556251097,-585.31,0.00019452,2]
[360119980,1746556251107,-400.0,0.00019452,2]
[360119982,1746556251116,-642.63,0.00019452,2]
[360119984,1746556251126,-503.64168324,0.00019452,2]
[360119986,1746556251137,-400.0,0.00019452,2]
[360119988,1746556251146,-1026.77,0.00019452,2]
[360119990,1746556251156,-500.0,0.00019452,2]
[360119992,1746556251165,-400.0,0.00019452,2]
[360119994,1746556251174,-625.03,0.00019452,2]
[360119996,1746556251184,-474.87,0.00019452,2]
[360119998,1746556251193,-400.0,0.00019452,2]
[360120000,1746556251202,-2938.9,0.00019452,2]
[360120002,1746556251212,-400.0,0.00019452,2]
[360120004,1746556251221,-400.0,0.00019452,2]
[360120006,1746556251230,-400.0,0.00019452,2]
[360120008,1746556251239,-400.0,0.00019452,2]
[360120010,1746556251249,-400.0,0.00019452,2]
[360120012,1746556251258,-505.72161325,0.00019452,2]
[360120014,1746556251268,-400.0,0.00019452,2]
[360120016,1746556251277,-400.0,0.00019452,2]
[360120018,1746556251287,-400.0,0.00019452,2]
[360120020,1746556251297,-400.0,0.00019452,2]
[360120022,1746556251307,-608.74,0.00019452,2]
[360120024,1746556251316,-400.0,0.00019452,2]
[360120026,1746556251325,-401.94674852,0.00019452,2]
[360120028,1746556251335,-400.0,0.00019452,2]
[360120030,1746556251344,-400.0,0.00019452,2]
[360120032,1746556251353,-400.0,0.00019452,2]
[360120034,1746556251363,-500.0,0.00019452,2]
[360120036,1746556251372,-400.0,0.00019452,2]
[360120038,1746556251381,-502.65057498,0.00019452,2]
[360120040,1746556251391,-402.77319095,0.00019452,2]
[360120042,1746556251401,-400.0,0.00019452,2]
[360120044,1746556251410,-400.0,0.00019452,2]
[360120046,1746556251419,-400.0,0.00019452,2]
[360120048,1746556251429,-400.0,0.00019452,2]
[360120050,1746556251438,-400.0,0.00019452,2]
[360120052,1746556251448,-403.32021454,0.00019452,2]
[360120054,1746556251457,-400.0,0.00019452,2]
[360120056,1746556251467,-174.646678,0.00019452,2]
[360120058,1746556251477,-174.646678,0.00019452,2]
[360120060,1746556251487,-204.284548,0.00019452,2]
[360120062,1746556251496,-403.76,0.00019452,2]
[360120064,1746556251506,-400.0,0.00019452,2]
[360120066,1746556251516,-400.0,0.00019452,2]
[360120068,1746556251525,-400.0,0.00019452,2]
[360120070,1746556251535,-920.21,0.00019452,2]
[360120072,1746556251544,-174.646678,0.00019452,2]
[360120074,1746556251554,-204.284548,0.00019452,2]
[360120076,1746556251563,-174.646678,0.00019452,2]
[360120079,1746556251574,-400.0,0.00019452,2]
[360120080,1746556251583,-400.0,0.00019452,2]
[360120082,1746556251593,-307.06732803,0.00019452,2]
[360120084,1746556251603,-400.0,0.00019452,2]
[360120085,1746556251617,-400.0,0.00019452,2]
[360120087,1746556251626,-400.0,0.00019452,2]
[360120089,1746556251635,-400.0,0.00019452,2]
[360120091,1746556251644,-428.54,0.00019452,2]
[360120093,1746556251655,-456.41521488,0.00019452,2]
[360120094,1746556251664,-1748.72,0.00019452,2]
[360120095,1746556251674,-400.0,0.00019452,2]
[360120096,1746556251683,-400.0,0.00019452,2]
[360120097,1746556251694,-400.0,0.00019452,2]
[360120098,1746556251703,-214.02295616,0.00019452,2]
[360120099,1746556251713,-192.079047,0.00019452,2]
[360120100,1746556251722,-400.0,0.00019452,2]
[360120101,1746556251732,-504.16376864,0.00019452,2]
[360120102,1746556251742,-151.0,0.00019452,2]
[360120103,1746556251755,-151.0,0.00019452,2]
[360120104,1746556251764,-400.0,0.00019452,2]
[360120105,1746556251774,-400.0,0.00019452,2]
[360120106,1746556251783,-400.0,0.00019452,2]
[360120107,1746556251793,-400.0,0.00019452,2]
[360120108,1746556251802,-192.079047,0.00019452,2]
[360120109,1746556251812,-151.0,0.00019452,2]
[360120110,1746556251821,-206.009949,0.00019452,2]
[360120111,1746556251831,-400.0,0.00019452,2]
[360120112,1746556251841,-5262.57,0.00019452,2]
[360120113,1746556251850,-400.0,0.00019452,2]
[360120114,1746556251860,-400.0,0.00019452,2]
[360120115,1746556251869,-3371.95,0.00019452,2]
[360120116,1746556251878,-400.0,0.00019452,2]
[360120117,1746556251998,-1172.28,0.00019452,2]
[360120118,1746556252009,-400.0,0.00019452,2]
[360120119,1746556252019,-417.89,0.00019452,2]
[360120120,1746556252029,-400.0,0.00019452,2]
[360120121,1746556252039,-400.0,0.00019452,2]
[360120122,1746556252049,-400.0,0.00019452,2]
[360120123,1746556252058,-400.0,0.00019452,2]
[360120124,1746556252068,-400.0,0.00019452,2]
[360120125,1746556252077,-400.0,0.00019452,2]
[360120126,1746556252087,-400.0,0.00019452,2]
[360120127,1746556252099,-400.0,0.00019452,2]
[360120128,1746556252109,-510.74,0.00019452,2]
[360120129,1746556252119,-400.0,0.00019452,2]
[360120130,1746556252128,-512.42057002,0.00019452,2]
[360120131,1746556252138,-400.0,0.00019452,2]
[360120132,1746556252149,-400.0,0.00019452,2]
[360120133,1746556252159,-400.0,0.00019452,2]
[360120134,1746556252171,-400.0,0.00019452,2]
[360120135,1746556252181,-400.0,0.00019452,2]
[360120136,1746556252190,-975.81,0.00019452,2]
[360120137,1746556252201,-1308.2,0.00019452,2]
[360120138,1746556252211,-400.0,0.00019452,2]
[360120139,1746556252221,-876.3,0.00019452,2]
[360120140,1746556252232,-281.695694,0.00019452,2]
[360120141,1746556252241,-400.0,0.00019452,2]
[360120142,1746556252251,-406.5313941,0.00019452,2]
[360120143,1746556252260,-401.33723472,0.00019452,2]
[360120144,1746556252270,-1706.25,0.00019452,2]
[360120145,1746556252280,-758.88,0.00019452,2]
[360120146,1746556252289,-400.0,0.00019452,2]
[360120147,1746556252298,-281.695694,0.00019452,2]
[360120148,1746556252309,-400.0,0.00019452,2]
[360120149,1746556252318,-403.72300293,0.00019452,2]
[360120150,1746556252328,-400.0,0.00019452,2]
[360120151,1746556252338,-400.0,0.00019452,2]
[360120152,1746556252348,-400.0,0.00019452,2]
[360120153,1746556252357,-1752.25,0.00019452,2]
[360120154,1746556252367,-400.0,0.00019452,2]
[360120155,1746556252376,-405.2688485,0.00019452,2]
[360120156,1746556252386,-400.0,0.00019452,2]
[360120157,1746556252395,-400.0,0.00019452,2]
[360120158,1746556252405,-407.394944,0.00019452,2]
[360120159,1746556252414,-400.0,0.00019452,2]
[360120160,1746556252424,-151.0,0.00019452,2]
[360120161,1746556252433,-400.0,0.00019452,2]
[360120162,1746556252443,-400.0,0.00019452,2]
[360120163,1746556252452,-1651.92,0.00019452,2]
[360120164,1746556252461,-895.02,0.00019452,2]
[360120165,1746556252471,-400.0,0.00019452,2]
[360120166,1746556252480,-400.0,0.00019452,2]
[360120167,1746556252489,-400.0,0.00019452,2]
[360120168,1746556252499,-400.0,0.00019452,2]
[360120169,1746556252508,-400.0,0.00019452,2]
[360120170,1746556252518,-400.0,0.00019452,2]
[360120171,1746556252528,-400.0,0.00019452,2]
[360120172,1746556252537,-400.0,0.00019452,2]
[360120173,1746556252547,-400.0,0.00019452,2]
[360120174,1746556252556,-151.0,0.00019452,2]
[360120175,1746556252565,-151.0,0.00019452,2]
[360120176,1746556252575,-400.0,0.00019452,2]
[360120177,1746556252584,-400.0,0.00019452,2]
[360120178,1746556252593,-233.76033808,0.00019452,2]
[360120179,1746556252603,-400.0,0.00019452,2]
[360120180,1746556252612,-400.0,0.00019452,2]
[360120181,1746556252621,-572.25,0.00019452,2]
[360120182,1746556252630,-404.73978031,0.00019452,2]
[360120183,1746556252639,-872.22,0.00019452,2]
[360120184,1746556252649,-163.4935406,0.00019452,2]
[360120185,1746556252658,-998.0,0.00019452,2]
[360120186,1746556252668,-400.0,0.00019452,2]
[360120187,1746556252677,-400.0,0.00019452,2]
[360120188,1746556252686,-400.0,0.00019452,2]
[360120189,1746556252695,-5887.41,0.00019452,2]
[360120190,1746556252705,-220.64867925,0.00019452,2]
[360120191,1746556252714,-151.0,0.00019452,2]
[360120192,1746556252724,-153.247129,0.00019452,2]
[360120193,1746556252733,-401.61499065,0.00019452,2]
[360120194,1746556252742,-400.0,0.00019452,2]
[360120195,1746556252752,-739.77,0.00019452,2]
[360120196,1746556252761,-402.30534856,0.00019452,2]
[360120197,1746556252771,-403.16813055,0.00019452,2]
[360120198,1746556252780,-400.0,0.00019452,2]
[360120199,1746556252790,-151.0,0.00019452,2]
[360120200,1746556252799,-400.0,0.00019452,2]
[360120201,1746556252809,-1358.88,0.00019452,2]
[360120202,1746556252818,-400.0,0.00019452,2]
[360120203,1746556252828,-400.0,0.00019452,2]
[360120204,1746556252837,-151.0,0.00019452,2]
[360120205,1746556252846,-400.0,0.00019452,2]
[360120206,1746556252855,-400.0,0.00019452,2]
[360120207,1746556252865,-404.06834625,0.00019452,2]
[360120208,1746556252875,-400.0,0.00019452,2]
[360120209,1746556252884,-400.0,0.00019452,2]
[360120210,1746556252894,-400.0,0.00019452,2]
[360120211,1746556252903,-400.0,0.00019452,2]
[360120212,1746556252913,-400.0,0.00019452,2]
[360120213,1746556252923,-400.0,0.00019452,2]
[360120214,1746556252932,-857.42,0.00019452,2]
[360120215,1746556252942,-400.0,0.00019452,2]
[360120216,1746556252952,-400.0,0.00019452,2]
[360120217,1746556252962,-400.0,0.00019452,2]
[360120218,1746556252972,-518.61,0.00019452,2]
[360120219,1746556252981,-779.44,0.00019452,2]
[360120220,1746556252992,-400.0,0.00019452,2]
[360120221,1746556253001,-400.0,0.00019452,2]
[360120222,1746556253011,-151.0,0.00019452,2]
[360120223,1746556253021,-151.0,0.00019452,2]
[360120224,1746556253031,-400.0,0.00019452,2]
[360120225,1746556253040,-400.0,0.00019452,2]
[360120226,1746556253050,-400.0,0.00019452,2]
[360120227,1746556253059,-400.0,0.00019452,2]
[360120228,1746556253068,-553.59,0.00019452,2]
[360120229,1746556253078,-400.0,0.00019452,2]
[360120230,1746556253086,-400.0,0.00019452,2]
[360120231,1746556253100,-449.53782653,0.00019452,2]
[360120232,1746556253110,-400.0,0.00019452,2]
[360120233,1746556253119,-400.8255333,0.00019452,2]
[360120234,1746556253128,-400.0,0.00019452,2]
[360120235,1746556253139,-583.66,0.00019452,2]
[360120236,1746556253148,-400.0,0.00019452,2]
[360120237,1746556253157,-400.0,0.00019452,2]
[360120238,1746556253167,-400.0,0.00019452,2]
[360120239,1746556253176,-400.0,0.00019452,2]
[360120240,1746556253186,-1671.52,0.00019452,2]
[360120241,1746556253196,-511.39966207,0.00019452,2]
[360120242,1746556253206,-400.0,0.00019452,2]
[360120243,1746556253215,-400.0,0.00019452,2]
[360120244,1746556253225,-896.18,0.00019452,2]
[360120245,1746556253234,-400.0,0.00019452,2]
[360120246,1746556253243,-400.0,0.00019452,2]
[360120247,1746556253253,-400.0,0.00019452,2]
[360120248,1746556253264,-309.69643883,0.00019452,2]
[360120249,1746556253274,-151.0,0.00019452,2]
[360120250,1746556253284,-611.24,0.00019452,2]
[360120251,1746556253294,-151.0,0.00019452,2]
[360120252,1746556253304,-400.0,0.00019452,2]
[360120253,1746556253313,-400.0,0.00019452,2]
[360120254,1746556253323,-151.0,0.00019452,2]
[360120255,1746556253331,-400.0,0.00019452,2]
[360120256,1746556253341,-151.0,0.00019452,2]
[360120257,1746556253350,-307.91332687,0.00019452,2]
[360120258,1746556253360,-400.0,0.00019452,2]
[360120259,1746556253370,-400.0,0.00019452,2]
[360120260,1746556253379,-400.0,0.00019452,2]
[360120261,1746556253388,-400.0,0.00019452,2]
[360120262,1746556253398,-400.0,0.00019452,2]
[360120263,1746556253407,-1515.05,0.00019452,2]
[360120264,1746556253417,-400.0,0.00019452,2]
[360120265,1746556253426,-343.05919239,0.00019452,2]
[360120266,1746556253436,-224.44762557,0.00019452,2]
[360120267,1746556253445,-400.0,0.00019452,2]
[360120268,1746556253455,-400.0,0.00019452,2]
[360120269,1746556253464,-400.0,0.00019452,2]
[360120270,1746556253473,-692.67,0.00019452,2]
[360120271,1746556253482,-400.0,0.00019452,2]
[360120272,1746556253492,-400.0,0.00019452,2]
[360120273,1746556253501,-400.0,0.00019452,2]
[360120274,1746556253510,-400.0,0.00019452,2]
[360120275,1746556253520,-204.21910831,0.00019452,2]
[360120276,1746556253529,-400.0,0.00019452,2]
[360120277,1746556253538,-400.0,0.00019452,2]
[360120278,1746556253548,-400.0,0.00019452,2]
[360120279,1746556253558,-400.0,0.00019452,2]
[360120280,1746556253568,-400.0,0.00019452,2]
[360120281,1746556253577,-3041.56,0.00019452,2]
[360120282,1746556253587,-400.0,0.00019452,2]
[360120283,1746556253596,-400.0,0.00019452,2]
[360120284,1746556253606,-546.22406821,0.00019452,2]
[360120285,1746556253615,-400.0,0.00019452,2]
[360120286,1746556253624,-400.0,0.00019452,2]
[360120287,1746556253633,-152.884301,0.00019452,2]
[360120288,1746556253643,-1423.51,0.00019452,2]
[360120289,1746556253652,-500.0,0.00019452,2]
[360120290,1746556253661,-151.0,0.00019452,2]
[360120291,1746556253670,-460.13,0.00019452,2]
[360120292,1746556253679,-204.85885003,0.00019452,2]
[360120293,1746556253689,-400.0,0.00019452,2]
[360120294,1746556253698,-400.0,0.00019452,2]
[360120295,1746556253708,-758.77,0.00019452,2]
[360120296,1746556253717,-400.0,0.00019452,2]
[360120297,1746556253727,-3637.57,0.00019452,2]
[360120298,1746556253737,-151.0,0.00019452,2]
[360120299,1746556253746,-151.0,0.00019452,2]
[360120300,1746556253755,-357.10086959,0.00019452,2]
[360120301,1746556253765,-151.0,0.00019452,2]
[360120302,1746556253774,-400.0,0.00019452,2]
[360120303,1746556253783,-207.663777,0.00019452,2]
[360120304,1746556253792,-2670.92,0.00019452,2]
[360120305,1746556253801,-2159.99,0.00019452,2]
[360120306,1746556253811,-400.0,0.00019452,2]
[360120307,1746556253820,-5693.77,0.00019452,2]
[360120308,1746556253830,-509.23200127,0.00019452,2]
[360120309,1746556253838,-400.0,0.00019452,2]
[360120310,1746556253848,-400.0,0.00019452,2]
[360120311,1746556253858,-600.58,0.00019452,2]
[360120312,1746556253867,-1119.95,0.00019452,2]
[360120313,1746556253877,-400.0,0.00019452,2]
[360120314,1746556253886,-2451.0,0.00019452,2]
[360120315,1746556253896,-945.39,0.00019452,2]
[360120316,1746556253905,-400.0,0.00019452,2]
[360120317,1746556253914,-400.0,0.00019452,2]
[360120318,1746556253923,-400.0,0.00019452,2]
[360120319,1746556253933,-1641.79,0.00019452,2]
[360120320,1746556253942,-400.0,0.00019452,2]
[360120321,1746556253952,-400.0,0.00019452,2]
[360120322,1746556253961,-400.0,0.00019452,2]
[360120323,1746556253970,-401.28101685,0.00019452,2]
[360120324,1746556253979,-400.0,0.00019452,2]
[360120325,1746556253989,-451.19,0.00019452,2]
[360120326,1746556253998,-1219.05,0.00019452,2]
[360120327,1746556254007,-400.0,0.00019452,2]
[360120328,1746556254016,-400.0,0.00019452,2]
[360120329,1746556254026,-1957.05,0.00019452,2]
[360120330,1746556254035,-400.0,0.00019452,2]
[360120331,1746556254044,-417.45388257,0.00019452,2]
[360120332,1746556254054,-400.0,0.00019452,2]
[360120333,1746556254168,-2880.62,0.00019452,2]
[360120334,1746556254178,-400.0,0.00019452,2]
[360120335,1746556254189,-400.0,0.00019452,2]
[360120336,1746556254199,-400.0,0.00019452,2]
[360120337,1746556254207,-400.0,0.00019452,2]
[360120338,1746556254217,-151.0,0.00019452,2]
[360120339,1746556254227,-414.38058515,0.00019452,2]
[360120340,1746556254236,-4275.0,0.00019452,2]
[360120341,1746556254246,-151.0,0.00019452,2]
[360120342,1746556254255,-452.1,0.00019452,2]
[360120343,1746556254265,-400.0,0.00019452,2]
[360120344,1746556254275,-1351.99,0.00019452,2]
[360120345,1746556254284,-1982.6,0.00019452,2]
[360120346,1746556254294,-281.697848,0.00019452,2]
[360120347,1746556254304,-317.15975652,0.00019452,2]
[360120348,1746556254313,-688.43,0.00019452,2]
[360120349,1746556254323,-917.94,0.00019452,2]
[360120350,1746556254332,-400.0,0.00019452,2]
[360120351,1746556254343,-400.0,0.00019452,2]
[360120352,1746556254353,-1730.35,0.00019452,2]
[360120353,1746556254363,-400.0,0.00019452,2]
[360120354,1746556254372,-437.22,0.00019452,2]
[360120355,1746556254382,-400.0,0.00019452,2]
[360120356,1746556254391,-745.27,0.00019452,2]
[360120357,1746556254401,-634.58,0.00019452,2]
[360120358,1746556254411,-2394.23,0.00019452,2]
[360120359,1746556254420,-1762.42,0.00019452,2]
[360120360,1746556254430,-407.5,0.00019452,2]
[360120362,1746556254439,-207.81361761,0.00019452,2]
[360120364,1746556254448,-1234.29,0.00019452,2]
[360120366,1746556254457,-400.0,0.00019452,2]
[360120367,1746556254466,-400.0,0.00019452,2]
[360120368,1746556254477,-700.18,0.00019452,2]
[360120369,1746556254487,-400.0,0.00019452,2]
[360120370,1746556254496,-400.0,0.00019452,2]
[360120371,1746556254506,-400.0,0.00019452,2]
[360120372,1746556254515,-438.48,0.00019452,2]
[360120373,1746556254524,-461.86,0.00019452,2]
[360120374,1746556254534,-400.0,0.00019452,2]
[360120375,1746556254544,-404.56256714,0.00019452,2]
[360120376,1746556254554,-400.0,0.00019452,2]
[360120377,1746556254564,-400.0,0.00019452,2]
[360120379,1746556254574,-408.62378726,0.00019452,2]
[360120381,1746556254584,-400.0,0.00019452,2]